fUST/lending_fUST_20240328
["ID","MTS","AMOUNT","RATE_DAILY","PERIOD"]
[320845815,1711624232931,-24762.18810193,0.00074,120]
[320845816,1711624232941,-174.40645698,0.00074092,2]
[320845817,1711624232950,-160.0695219,0.00074192,120]
[320845819,1711624232959,-500.0,0.000749,120]
[320845820,1711624232969,-5825.58,0.00074931,120]
[320845822,1711624232978,-150.0,0.00074969,120]
[320845824,1711624232992,-578.57820143,0.00074998,7]
[320845825,1711624233005,-4282.31187495,0.00074998,7]
[320845826,1711624233018,-1000.0,0.00074999,120]
[320845827,1711624233031,-312.32518415,0.00074999,120]
[320845828,1711624233045,-500.0,0.00074999,120]
[320845829,1711624233055,-500.0,0.00074999,120]
[320845830,1711624233066,-500.0,0.00074999,120]
[320845831,1711624233079,-500.0,0.00074999,120]
[320845832,1711624233091,-500.0,0.00074999,120]
[320845833,1711624233108,-500.0,0.00074999,120]
[320845834,1711624233121,-500.0,0.00074999,120]
[320845835,1711624233134,-500.0,0.00074999,120]
[320845836,1711624233147,-500.0,0.00074999,120]
[320845837,1711624233159,-500.0,0.00074999,120]
[320845838,1711624233170,-500.0,0.00074999,120]
[320845839,1711624233183,-500.0,0.00074999,120]
[320845840,1711624233194,-260.89084803,0.00074999,120]
[320845841,1711624233204,-500.0,0.00074999,120]
[320845842,1711624233214,-500.0,0.00074999,120]
[320845843,1711624233226,-500.0,0.00074999,120]
[320845844,1711624233238,-500.0,0.00074999,120]
[320845845,1711624233249,-500.0,0.00074999,120]
[320845846,1711624233261,-500.0,0.00074999,120]
[320845847,1711624233273,-500.0,0.00074999,120]
[320845848,1711624233284,-500.0,0.00074999,120]
[320845849,1711624233296,-500.0,0.00074999,120]
[320845850,1711624233308,-39387.87673541,0.00075,120]
[320845851,1711624233369,-2257.7584493,0.00075,120]
[320845879,1711624238394,-778.74490768,0.00075,120]
[320845880,1711624238409,-3763.18735695,0.00075,120]
[320845913,1711624240624,-3951.65903696,0.00075,120]
[320846103,1711624243682,-2243.0599994,0.00075,120]
[320846302,1711624246445,-49822.74848251,0.000711,120]
[320846304,1711624246457,-1869.44935454,0.00074999,7]
[320846319,1711624246468,-14838.48468745,0.00075,120]
[320847431,1711624694120,310.10836858,0.00033,4]
[320847438,1711624948500,309.9690031,0.00019,2]
[320847439,1711625198906,150.0,0.000309,2]
[320847441,1711625352306,-2577.24331978,0.0003754,30]
[320847505,1711625432625,-1454.01616464,0.00037539,4]
[320847507,1711625432634,-9263.18383536,0.0003754,30]
[320847510,1711625432646,-2000.96522041,0.0003754,30]
[320847512,1711625432655,-500.0,0.000719,120]
[320847515,1711625432664,-166.666666,0.00071935,2]
[320847517,1711625432673,-500.0,0.000729,120]
[320847520,1711625432682,-3000.0,0.00073119,120]
[320847522,1711625432692,-161.381168,0.0007329,120]
[320847524,1711625432701,-5674.05827348,0.00073557,2]
[320848057,1711625438596,-1398.75522733,0.00073557,2]
[320848193,1711625443785,-4265.96829579,0.00073557,2]
[320848194,1711625443794,-128.25065089,0.000739,120]
[320848216,1711625444088,-371.74934911,0.000739,120]
[320848218,1711625444097,-160.0695219,0.00074192,120]
[320848220,1711625444105,-6960.78273802,0.0007425,4]
[320848222,1711625444115,-162.93449628,0.000748,14]
[320848224,1711625444124,-208.31732446,0.000748,2]
[320848226,1711625444133,-1867.0,0.000749,45]
[320848228,1711625444141,-500.0,0.000749,120]
[320848230,1711625444150,-1523.46950194,0.000749,80]
[320848233,1711625444166,-1031.08520387,0.000749,80]
[320848235,1711625444178,-1014.62778628,0.000749,80]
[320848404,1711625446810,-2176.08932891,0.000749,80]
[320848405,1711625446820,-1366.87468424,0.000749,2]
[320848406,1711625446830,-1988.79688879,0.0007493,120]
[320848407,1711625446843,-3717.89311121,0.0007493,120]
[320848408,1711625446853,-6568.10688878,0.0007497,120]
[320848414,1711626633377,-9951.53090713,0.00069994,7]
[320848415,1711626633387,-1869.44935454,0.00069995,7]
[320848416,1711626633397,-315.38512577,0.0007,30]
[320848481,1711626640923,-184.61487423,0.0007,30]
[320848482,1711626640934,-303.68677196,0.00071797,7]
[320848483,1711626640945,-2978.94595581,0.00071898,7]
[320848484,1711626640954,-500.0,0.000719,120]
[320848485,1711626640964,-209.5107572,0.00072867,30]
[320848486,1711626640973,-500.0,0.000729,120]
[320848487,1711626640984,-500.0,0.000739,120]
[320848488,1711626640999,-160.0695219,0.00074192,120]
[320848489,1711626641014,-6960.78273802,0.0007422,4]
[320848490,1711626641025,-162.93449628,0.00074799,14]
[320848491,1711626641035,-208.31732446,0.00074799,2]
[320848492,1711626641045,-34.54676456,0.0007489,120]
[320848493,1711626641059,-6542.889758,0.0007489,120]
[320848494,1711626641071,-1441.98154231,0.0007489,120]
[320848495,1711626641084,-4382.988152,0.0007489,120]
[320848496,1711626641094,-500.0,0.00074898,2]
[320848497,1711626641104,-500.0,0.00074898,120]
[320848498,1711626641114,-627.43,0.00074899,120]
[320848499,1711626641124,-500.0,0.00074899,120]
[320848500,1711626641134,-512.8969604,0.00074899,120]
[320848501,1711626641144,-500.0,0.00074899,7]
[320848502,1711626641153,-520.39162881,0.00074899,120]
[320848503,1711626641164,-500.0,0.00074899,120]
[320848504,1711626641173,-501.48860516,0.00074899,120]
[320848505,1711626641183,-501.93913694,0.00074899,120]
[320848506,1711626641192,-500.0,0.00074899,120]
[320848507,1711626641202,-501.4254327,0.00074899,120]
[320848508,1711626641211,-112.87845074,0.00074899,120]
[320848509,1711626641224,-387.12154926,0.00074899,120]
[320848510,1711626641233,-502.16348976,0.00074899,120]
[320848511,1711626641242,-501.81508227,0.00074899,120]
[320848512,1711626641252,-196.16951097,0.00074899,120]
[320848513,1711626641261,-500.70679161,0.00074899,120]
[320848514,1711626641272,-501.41840544,0.00074899,120]
[320848515,1711626641282,-1603.2335152,0.00074899,120]
[320848531,1711626644040,-0.02102013,0.00074899,120]
[320848532,1711626644053,-64.78546467,0.00074899,120]
[320848533,1711626644063,-333.43263545,0.00074899,120]
[320848534,1711626644073,-206.28257449,0.00074899,120]
[320848535,1711626644090,-294.10523959,0.00074899,120]
[320848536,1711626644100,-500.0,0.00074899,120]
[320848537,1711626644111,-502.01021206,0.00074899,120]
[320848538,1711626644120,-500.0,0.00074899,120]
[320848539,1711626644130,-502.03078726,0.00074899,120]
[320848540,1711626644139,-521.73287728,0.00074899,120]
[320848541,1711626644149,-500.0,0.00074899,120]
[320848542,1711626644159,-500.0,0.00074899,120]
[320848543,1711626644168,-518.43265602,0.00074899,120]
[320848544,1711626644178,-500.0,0.00074899,120]
[320848546,1711626644187,-310.37622894,0.00074899,120]
[320848547,1711626644197,-500.0,0.00074899,120]
[320848548,1711626644206,-503.13999453,0.00074899,120]
[320848549,1711626644217,-152.57246151,0.00074899,120]
[320848550,1711626644226,-500.0,0.00074899,120]
[320848551,1711626644235,-500.0,0.00074899,120]
[320848552,1711626644245,-500.0,0.00074899,120]
[320848553,1711626644255,-839.09,0.00074899,120]
[320848554,1711626644265,-503.70394694,0.00074899,120]
[320848555,1711626644276,-498.80047884,0.00074899,120]
[320848556,1711626644286,-500.0,0.00074899,120]
[320848557,1711626644297,-433.03219239,0.00074899,120]
[320848558,1711626644308,-1000.0,0.00074899,7]
[320848559,1711626644318,-175.29585635,0.00074899,120]
[320848560,1711626644332,-324.70414365,0.00074899,120]
[320848561,1711626644341,-833.6,0.00074899,120]
[320848562,1711626644353,-502.38291623,0.00074899,120]
[320848563,1711626644366,-2083.35,0.00074899,120]
[320848564,1711626644377,-1738.67,0.00074899,120]
[320848565,1711626644390,-2753.5558267,0.00074899,2]
[320848566,1711626644400,-500.0,0.00074899,120]
[320848567,1711626644411,-500.0,0.00074899,120]
[320848568,1711626644422,-500.0,0.00074899,120]
[320848569,1711626644432,-500.0,0.000749,120]
[320848570,1711626644443,-203.128367,0.000749,120]
[320848571,1711626644453,-5590.23,0.00074901,120]
[320848572,1711626644462,-500.0,0.00074928,2]
[320848573,1711626644581,-500.0,0.00074928,120]
[320848574,1711626644594,-514.62778628,0.00074928,120]
[320848575,1711626644607,-500.0,0.00074928,120]
[320848576,1711626644616,-500.0,0.00074928,120]
[320848577,1711626644625,-195.65453867,0.00074928,120]
[320848578,1711626644635,-500.0,0.00074928,120]
[320848579,1711626644644,-2155.21072557,0.00074929,120]
[320848580,1711626644657,-3844.78927443,0.00074929,120]
[320848581,1711626644667,-4739.70852743,0.00074929,120]
[320848582,1711626644678,-260.29147257,0.00074929,120]
[320848583,1711626644687,-500.0,0.00074929,120]
[320848584,1711626644696,-496.44633,0.00074929,120]
[320848618,1711626646950,-413.54887252,0.00072799,4]
[320848619,1711626646960,-500.0,0.00074898,120]
[320848620,1711626646969,-537.25855472,0.00074928,120]
[320848621,1711626646978,-3.55367,0.00074929,120]
[320848622,1711626646988,-500.0,0.00074929,120]
[320848623,1711626646997,-3059.25,0.00074929,120]
[320848624,1711626647007,-500.0,0.00074929,120]
[320848625,1711626647016,-500.0,0.00074929,120]
[320848626,1711626647026,-500.0,0.00074929,120]
[320848627,1711626647035,-500.0,0.00074929,120]
[320848628,1711626647044,-500.0,0.00074929,120]
[320848629,1711626647053,-567.39,0.00074929,120]
[320848630,1711626647063,-500.0,0.00074929,120]
[320848631,1711626647072,-1000.0,0.00074929,2]
[320848632,1711626647082,-2184.77,0.00074929,120]
[320848633,1711626647091,-500.0,0.00074929,120]
[320848634,1711626647100,-500.0,0.00074929,120]
[320848635,1711626647111,-500.0,0.0007493,120]
[320848636,1711626647120,-500.0,0.0007493,120]
[320848637,1711626647129,-503.02512612,0.0007493,120]
[320848638,1711626647138,-198.79573924,0.0007493,120]
[320848639,1711626647148,-500.0,0.0007493,120]
[320848640,1711626647157,-500.0,0.0007493,120]
[320848641,1711626647166,-500.0,0.0007493,120]
[320848642,1711626647175,-500.0,0.0007493,120]
[320848643,1711626647184,-500.0,0.0007493,120]
[320848644,1711626647193,-502.02086045,0.0007493,120]
[320848645,1711626647202,-500.0,0.0007493,120]
[320848646,1711626647212,-500.0,0.0007493,120]
[320848647,1711626647221,-500.0,0.0007493,120]
[320848648,1711626647231,-500.0,0.0007493,120]
[320848649,1711626647240,-500.0,0.0007493,120]
[320848650,1711626647249,-518.94341513,0.0007493,120]
[320848651,1711626647258,-371.14812366,0.0007493,120]
[320848652,1711626647267,-500.0,0.0007493,120]
[320848653,1711626647277,-500.0,0.0007493,120]
[320848654,1711626647287,-500.74524811,0.0007493,120]
[320848655,1711626647296,-501.00385866,0.0007493,120]
[320848656,1711626647305,-500.0,0.0007493,7]
[320848657,1711626647314,-500.0,0.0007493,120]
[320848658,1711626647323,-501.73069062,0.0007493,120]
[320848659,1711626647333,-500.0,0.0007493,120]
[320848660,1711626647342,-500.0,0.0007493,120]
[320848661,1711626647352,-500.0,0.0007493,120]
[320848662,1711626647366,-500.0,0.0007493,120]
[320848663,1711626647376,-500.91443428,0.0007493,120]
[320848664,1711626647386,-500.0,0.0007493,120]
[320848665,1711626647395,-500.0,0.0007493,120]
[320848666,1711626647404,-421.54478705,0.0007493,120]
[320848667,1711626647413,-501.4045129,0.0007493,120]
[320848668,1711626647422,-500.0,0.0007493,120]
[320848669,1711626647432,-500.0,0.0007493,120]
[320848670,1711626647442,-500.0,0.0007493,120]
[320848671,1711626647451,-500.0,0.0007493,120]
[320848672,1711626647461,-500.0,0.0007493,120]
[320848673,1711626647470,-500.0,0.0007493,120]
[320848674,1711626647479,-500.0,0.0007493,120]
[320848675,1711626647488,-501.68955675,0.0007493,120]
[320848676,1711626647498,-500.0,0.0007493,120]
[320848677,1711626647507,-580.97471259,0.0007493,120]
[320848678,1711626647516,-501.5309912,0.0007493,120]
[320848679,1711626647525,-501.95496196,0.0007493,120]
[320848680,1711626647535,-151.47252526,0.0007493,120]
[320848681,1711626647544,-1000.0,0.0007493,120]
[320848682,1711626647553,-500.22533911,0.0007493,120]
[320848683,1711626647562,-403.638848,0.0007493,120]
[320848684,1711626647571,-500.0,0.0007493,120]
[320848685,1711626647580,-500.0,0.0007493,120]
[320848686,1711626647589,-502.86300824,0.0007493,120]
[320848687,1711626647599,-471.19723766,0.00074966,7]
[320848688,1711626647612,-155.03875969,0.00074967,7]
[320848689,1711626647622,-502.42469842,0.00074967,120]
[320848690,1711626647632,-501.33297848,0.00074967,120]
[320848691,1711626647641,-500.0,0.00074967,120]
[320848692,1711626647651,-500.0,0.00074967,2]
[320848693,1711626647661,-500.0,0.00074967,120]
[320848694,1711626647671,-500.0,0.00074968,120]
[320848695,1711626647680,-500.0,0.00074968,120]
[320848696,1711626647690,-590.63625456,0.00074968,120]
[320848697,1711626647699,-500.0,0.00074968,120]
[320848698,1711626647708,-500.0,0.00074968,120]
[320848699,1711626647716,-500.0,0.00074968,120]
[320848700,1711626647725,-500.0,0.00074968,120]
[320848701,1711626647734,-500.0,0.00074968,120]
[320848702,1711626647744,-500.0,0.00074968,120]
[320848703,1711626647753,-500.0,0.00074968,120]
[320848704,1711626647761,-500.0,0.00074968,120]
[320848705,1711626647770,-500.0,0.00074968,120]
[320848706,1711626647779,-500.0,0.00074968,120]
[320848707,1711626647788,-500.0,0.00074968,120]
[320848708,1711626647798,-500.0,0.00074968,120]
[320848709,1711626647807,-500.33374769,0.00074968,120]
[320848710,1711626647816,-347.63848693,0.00074968,120]
[320848711,1711626658320,162.35798589,0.00033,4]
[320848712,1711626680385,198.70489464,0.00033,4]
[320848713,1711626695253,4632.55849995,0.00033,4]
[320848714,1711626695280,20996.80246678,0.00033,4]
[320848715,1711626711246,4003.19753322,0.00033,4]
[320848725,1711627493528,10000.0,0.0003211,2]
[320848726,1711627499338,10000.0,0.0003211,2]
[320848727,1711627505456,10000.0,0.0003211,2]
[320848728,1711627511814,10000.0,0.0003211,2]
[320848729,1711627517689,10000.0,0.0003211,2]
[320848730,1711627522873,6816.0,0.0003211,2]
[320848731,1711627528428,10000.0,0.0003,2]
[320848732,1711627534030,10000.0,0.0003,2]
[320848733,1711627540604,5000.0,0.0003,2]
[320848734,1711627551084,10000.0,0.000281,2]
[320848735,1711627563392,4710.34,0.000281,2]
[320848737,1711627787652,154.98450155,0.000281,2]
[320848738,1711627793659,154.98450155,0.000281,2]
[320848770,1711627831988,-204.93563212,0.00029988,2]
[320848771,1711627831997,-326.24677815,0.00029988,2]
[320848772,1711627832006,-686.36675448,0.00029988,2]
[320848773,1711627832015,-638.73147958,0.00029989,2]
[320848775,1711627832024,-5000.0,0.0003,2]
[320848777,1711627832033,-10000.0,0.0003,2]
[320848779,1711627832042,-275.69924834,0.000309,2]
[320848781,1711627832051,-3184.0,0.0003211,2]
[320848784,1711627832060,-9351.63544585,0.00033,4]
[320848787,1711627832069,-179.252085,0.00034297,2]
[320848789,1711627832078,-1471.69,0.00035,5]
[320848791,1711627832088,-275.69924834,0.000359,2]
[320848793,1711627832098,-275.69924834,0.000409,2]
[320848795,1711627832107,-1360.38,0.00050859,2]
[320848797,1711627832116,-150.98490151,0.00058893,2]
[320848799,1711627832125,-301.96980302,0.00059883,4]
[320848801,1711627832134,-1184.14784516,0.00069,120]
[320848847,1711627838022,-3045.31758839,0.00069,120]
[320848848,1711627838035,-1685.42602674,0.00069,120]
[320848855,1711627840059,-464.99167752,0.00069,120]
[320848856,1711627840129,-17.95217741,0.00069,120]
[320848858,1711627840138,-632.12714685,0.0007,2]
[320848859,1711627840151,-9917.79949224,0.0007,2]
[320848860,1711627840161,-208.31732448,0.00071118,2]
[320848861,1711627840170,-1237.90039738,0.00071218,7]
[320848862,1711627840180,-154.98450155,0.00071998,7]
[320848863,1711627840189,-500.0,0.00071999,120]
[320848864,1711627840199,-500.0,0.00071999,120]
[320848865,1711627840209,-408.65698422,0.00071999,120]
[320848866,1711627840222,-500.0,0.00071999,120]
[320848868,1711627840232,-18757.68809735,0.00072,120]
[320848885,1711627843283,-1428.89135469,0.00072,120]
[320848893,1711627846113,-616.46971598,0.00071998,7]
[320848894,1711627846124,-626.11003187,0.00071998,7]
[320848895,1711627846134,-388.21996813,0.00071999,7]
[320848900,1711628760544,329.51,0.0002722,10]
[320848944,1711629032599,-186.83213546,0.00063993,7]
[320848946,1711629032609,-354.85082199,0.00063994,7]
[320848947,1711629032618,-527.40947372,0.00063995,7]
[320848948,1711629032630,-1000.0,0.000646,30]
[320848949,1711629032639,-1498.50941461,0.00064896,7]
[320848950,1711629032649,-2120.999999,0.00065,120]
[320848951,1711629032660,-1000.0,0.00069987,2]
[320848952,1711629032670,-1000.0,0.00069987,3]
[320848953,1711629032679,-20000.0,0.0007,120]
[320848954,1711629032688,-1000.0,0.00070987,4]
[320848955,1711629032698,-20000.0,0.00071,120]
[320848956,1711629032707,-766.72,0.00071999,2]
[320848957,1711629032717,-1000.0,0.00072,120]
[320848958,1711629032727,-20350.00637621,0.00072,120]
[320849032,1711629043553,-9389.95510251,0.00072,120]
[320849034,1711629043563,-208.31732447,0.0007305,2]
[320849035,1711629043574,-500.0,0.0007315,120]
[320849036,1711629043583,-500.0,0.00073871,120]
[320849037,1711629043592,-156.51744269,0.00073871,120]
[320849038,1711629043601,-500.0,0.00073871,120]
[320849039,1711629043610,-500.0,0.00073871,120]
[320849040,1711629043619,-300.0,0.00073871,120]
[320849041,1711629043628,-26219.10328558,0.00073872,2]
[320849042,1711629043637,-2478.20024403,0.00073899,2]
[320849043,1711629043652,-15848.54432719,0.0007393,120]
[320849044,1711629043661,-613.04337008,0.00073971,7]
[320849045,1711629043669,-314.60530761,0.00073971,7]
[320849046,1711629043678,-151.0,0.00073971,30]
[320849047,1711629043687,-151.0,0.00073971,30]
[320849048,1711629043696,-215.27,0.00073971,30]
[320849049,1711629043705,-215.27,0.00073971,30]
[320849050,1711629043715,-312.32518415,0.00073971,120]
[320849051,1711629043726,-151.0,0.00073971,30]
[320849052,1711629043735,-150.0,0.00073971,120]
[320849053,1711629043745,-1000.0,0.00073971,120]
[320849054,1711629043755,-557.85548165,0.00073972,120]
[320849055,1711629043764,-500.0,0.00073972,120]
[320849056,1711629043774,-500.0,0.00073972,120]
[320849057,1711629043784,-500.0,0.00073972,120]
[320849058,1711629043793,-500.0,0.00073972,120]
[320849059,1711629043802,-500.0,0.00073972,120]
[320849060,1711629043812,-167.32002406,0.00073972,120]
[320849061,1711629043821,-175.55550186,0.00073972,120]
[320849062,1711629043830,-500.0,0.00073972,120]
[320849063,1711629043839,-417.96397618,0.00073972,120]
[320849064,1711629043848,-502.25419278,0.00073972,120]
[320849065,1711629043858,-500.0,0.00073972,120]
[320849066,1711629043869,-500.0,0.00073972,120]
[320849067,1711629043879,-500.0,0.00073972,120]
[320849068,1711629043889,-500.0,0.00073972,120]
[320849069,1711629043909,-500.0,0.00073972,120]
[320849070,1711629043919,-500.0,0.00073972,120]
[320849071,1711629043929,-502.23022503,0.00073972,120]
[320849072,1711629043939,-504.34918039,0.00073972,120]
[320849073,1711629043949,-500.35316692,0.00073972,120]
[320849074,1711629043960,-501.10139236,0.00073972,120]
[320849075,1711629043970,-501.82455427,0.00073972,120]
[320849076,1711629043980,-505.04550671,0.00073972,120]
[320849078,1711629043990,-500.0,0.00073972,7]
[320849079,1711629044000,-500.89696807,0.00073972,7]
[320849080,1711629044010,-500.28069203,0.00073972,120]
[320849081,1711629044020,-500.0,0.00073972,120]
[320849082,1711629044040,-501.58390285,0.00073972,120]
[320849083,1711629044052,-500.0,0.00073972,120]
[320849084,1711629044062,-500.0,0.00073972,120]
[320849085,1711629044073,-500.0,0.00073972,120]
[320849086,1711629044083,-500.0,0.00073972,120]
[320849087,1711629044092,-500.0,0.00073972,120]
[320849088,1711629044101,-500.0,0.00073972,120]
[320849089,1711629044110,-500.0,0.00073972,120]
[320849090,1711629044121,-519.05358618,0.00073972,120]
[320849091,1711629044131,-500.40197749,0.00073972,120]
[320849092,1711629044140,-598.26323271,0.00073972,120]
[320849093,1711629044158,-500.0,0.00073972,120]
[320849094,1711629044168,-501.06496677,0.00073972,120]
[320849095,1711629044177,-500.0,0.00073972,120]
[320849096,1711629044187,-500.0,0.00073972,120]
[320849097,1711629044196,-502.46342536,0.00073972,120]
[320849098,1711629044206,-500.0,0.00073972,120]
[320849099,1711629044216,-501.13395912,0.00073972,120]
[320849100,1711629044226,-500.0,0.00073972,120]
[320849101,1711629044235,-1000.0,0.00073972,120]
[320849102,1711629044244,-364.25922967,0.00073972,120]
[320849103,1711629044380,-500.0,0.00073972,120]
[320849104,1711629044390,-500.0,0.00073972,120]
[320849105,1711629044405,-492.15285848,0.00073972,120]
[320849106,1711629044415,-504.28935767,0.00073972,120]
[320849107,1711629044424,-500.0,0.00073972,120]
[320849108,1711629044433,-500.0,0.00073972,120]
[320849109,1711629044442,-537.9,0.00073972,120]
[320849110,1711629044451,-502.43073872,0.00073972,120]
[320849111,1711629044460,-500.0,0.00073972,120]
[320849112,1711629044470,-357.88699292,0.00073972,120]
[320849113,1711629044479,-501.38652988,0.00073972,120]
[320849114,1711629044488,-500.0,0.00073972,120]
[320849115,1711629044497,-500.0,0.00073972,120]
[320849116,1711629044506,-502.81767342,0.00073972,120]
[320849117,1711629044515,-501.92100559,0.00073972,120]
[320849118,1711629044526,-501.8599983,0.00073972,120]
[320849119,1711629044535,-647.17492575,0.00073972,120]
[320849120,1711629044546,-500.0,0.00073972,120]
[320849121,1711629044555,-501.88722231,0.00073972,120]
[320849122,1711629044565,-505.76864183,0.00073972,120]
[320849123,1711629044577,-500.0,0.00073972,120]
[320849124,1711629044586,-399.42393317,0.00073972,120]
[320849125,1711629044596,-188.87385879,0.00073972,120]
[320849126,1711629044605,-501.46679145,0.00073972,120]
[320849127,1711629044614,-500.0,0.00073972,120]
[320849128,1711629044624,-501.97786437,0.00073972,120]
[320849129,1711629044633,-206.28424893,0.00073972,120]
[320849130,1711629044644,-503.69781603,0.00073972,120]
[320849131,1711629044654,-500.0,0.00073972,120]
[320849132,1711629044663,-500.0,0.00073972,120]
[320849133,1711629044672,-500.0,0.00073972,120]
[320849134,1711629044681,-500.0,0.00073972,120]
[320849135,1711629044691,-573.26047292,0.00073972,120]
[320849136,1711629044700,-500.0,0.00073972,120]
[320849137,1711629044709,-501.10563701,0.00073972,120]
[320849138,1711629044718,-454.84647116,0.00073972,120]
[320849139,1711629044727,-500.65743084,0.00073972,120]
[320849140,1711629044736,-500.0,0.00073972,120]
[320849141,1711629044744,-603.18880186,0.00073972,120]
[320849142,1711629044754,-237.17120191,0.00073972,120]
[320849143,1711629044763,-501.54348128,0.00073972,120]
[320849144,1711629044773,-501.15533516,0.00073972,120]
[320849145,1711629044782,-500.0,0.00073972,120]
[320849146,1711629044791,-500.0,0.00073972,120]
[320849147,1711629044801,-509.61886968,0.00073972,120]
[320849148,1711629044809,-500.0,0.00073972,120]
[320849149,1711629044819,-396.36055505,0.00073972,120]
[320849150,1711629044828,-170.94285448,0.00073972,120]
[320849151,1711629044837,-500.0,0.00073972,120]
[320849152,1711629044846,-500.0,0.00073972,120]
[320849153,1711629044858,-502.59326804,0.00073972,120]
[320849154,1711629044868,-500.0,0.00073972,120]
[320849155,1711629044878,-500.66486284,0.00073972,120]
[320849156,1711629044886,-501.25675404,0.00073972,120]
[320849157,1711629044898,-505.40322215,0.00073972,120]
[320849158,1711629044907,-501.84610771,0.00073972,120]
[320849159,1711629044917,-502.07588102,0.00073972,120]
[320849160,1711629044927,-263.93601849,0.00073972,120]
[320849161,1711629044936,-501.5446426,0.00073972,120]
[320849162,1711629044946,-627.92,0.00073972,120]
[320849163,1711629044955,-500.3853207,0.00073972,120]
[320849164,1711629044964,-512.38376975,0.00073972,120]
[320849165,1711629044973,-500.0,0.00073972,120]
[320849166,1711629044982,-500.0,0.00073972,120]
[320849167,1711629044991,-500.0,0.00073972,120]
[320849168,1711629045000,-500.0,0.00073972,120]
[320849169,1711629045009,-500.0,0.00073972,120]
[320849170,1711629045019,-500.0,0.00073972,120]
[320849171,1711629045028,-500.0,0.00073972,120]
[320849172,1711629045037,-500.0,0.00073972,120]
[320849173,1711629045047,-500.0,0.00073972,120]
[320849174,1711629045056,-500.0,0.00073972,120]
[320849175,1711629045066,-500.0,0.00073972,120]
[320849176,1711629045076,-500.0,0.00073972,120]
[320849177,1711629045086,-500.0,0.00073972,120]
[320849178,1711629045096,-500.0,0.00073972,120]
[320849179,1711629045106,-500.0,0.00073972,120]
[320849180,1711629045115,-500.0,0.00073972,120]
[320849181,1711629045125,-500.0,0.00073972,120]
[320849182,1711629045134,-600.50995042,0.00073972,120]
[320849183,1711629045147,-500.31922984,0.00073972,120]
[320849184,1711629045157,-500.0,0.00073972,120]
[320849185,1711629045166,-506.4279634,0.00073972,120]
[320849186,1711629045175,-500.0,0.00073972,120]
[320849187,1711629045184,-500.0,0.00073972,120]
[320849188,1711629045193,-500.0,0.00073972,120]
[320849189,1711629045203,-500.0,0.00073972,120]
[320849190,1711629045212,-500.0,0.00073972,120]
[320849191,1711629045222,-500.0,0.00073972,120]
[320849192,1711629045232,-508.49312705,0.00073972,120]
[320849193,1711629045242,-500.0,0.00073972,120]
[320849194,1711629045252,-500.0,0.00073972,120]
[320849195,1711629045262,-500.0,0.00073972,120]
[320849196,1711629045272,-500.0,0.00073972,120]
[320849197,1711629045282,-500.0,0.00073972,120]
[320849198,1711629045292,-500.0,0.00073972,120]
[320849199,1711629045302,-524.31959565,0.00073972,120]
[320849200,1711629045311,-500.0,0.00073972,120]
[320849201,1711629045321,-500.0,0.00073972,120]
[320849202,1711629045331,-501.41490342,0.00073972,120]
[320849203,1711629045341,-500.0,0.00073972,120]
[320849204,1711629045351,-500.0,0.00073972,120]
[320849205,1711629045360,-500.0,0.00073972,120]
[320849206,1711629045370,-500.0,0.00073972,120]
[320849207,1711629045380,-500.0,0.00073972,120]
[320849208,1711629045390,-500.0,0.00073972,120]
[320849209,1711629045403,-640.04406138,0.00073972,120]